fUST/lending_fUST_20260607
["ID","MTS","AMOUNT","RATE_DAILY","PERIOD"]
[424315000,1780763443000,-529.43984715,0.00018883,2]
[424314998,1780763443000,-305.43567312,0.00018883,2]
[424315002,1780763443000,-304.10022816,0.00018883,2]
[424314992,1780763443000,-462.65285008,0.00018883,2]
[424314988,1780763443000,-167.02202968,0.00018883,2]
[424314990,1780763443000,-286.07618096,0.00018883,2]
[424315004,1780763443000,-725.91213905,0.00018883,2]
[424315006,1780763443000,-601.38430339,0.00018883,2]
[424315020,1780763443000,-406.25305205,0.00018883,2]
[424314980,1780763443000,-183.68605809,0.00018883,2]
[424315024,1780763443000,-167.68630196,0.00018883,2]
[424315026,1780763443000,-284.17263698,0.00018883,2]
[424315008,1780763443000,-669.2905228,0.00018883,2]
[424315028,1780763443000,-534.34097713,0.00018883,2]
[424315016,1780763443000,-177.47111113,0.00018883,2]
[424315030,1780763443000,-178.07766948,0.00018883,2]
[424315018,1780763443000,-240.76664225,0.00018883,2]
[424315034,1780763443000,-626.45722079,0.00018883,2]
[424315041,1780763443000,-652.00746619,0.00018883,2]
[424315036,1780763443000,-199.47008758,0.00018883,2]
[424315032,1780763443000,-498.9347032,0.00018883,2]
[424315040,1780763443000,-519.25389038,0.00018883,2]
[424315038,1780763443000,-561.97356638,0.00018883,2]
[424314906,1780763443000,-495.48358555,0.00018517,2]
[424315043,1780763443000,-375.61999671,0.00018883,2]
[424314982,1780763443000,-206.51406784,0.00018883,2]
[424315022,1780763443000,-298.74228276,0.00018883,2]
[424314972,1780763443000,-424.34766617,0.00018842,2]
[424314978,1780763443000,-312.85220174,0.00018883,2]
[424314908,1780763443000,-418.37726173,0.00018517,2]
[424314923,1780763443000,-549.92526035,0.00018517,2]
[424314910,1780763443000,-480.13287247,0.00018517,2]
[424314925,1780763443000,-580.68432334,0.00018517,2]
[424314927,1780763443000,-464.47453402,0.00018517,2]
[424314929,1780763443000,-577.43522125,0.00018517,2]
[424314943,1780763443000,-500.0,0.00018699,2]
[424314949,1780763443000,-500.0,0.00018838,7]
[424314955,1780763443000,-2658.402379,0.00018838,2]
[424314939,1780763443000,-472.88482234,0.00018548,2]
[424314953,1780763443000,-544.62,0.00018838,7]
[424314930,1780763443000,-367.95948809,0.00018517,2]
[424314947,1780763443000,-500.0,0.00018838,7]
[424314934,1780763443000,-468.76713535,0.00018548,2]
[424314976,1780763443000,-194.57643078,0.00018842,2]
[424314945,1780763443000,-347.0,0.00018826,2]
[424314974,1780763443000,-435.83365055,0.00018842,2]
[424314970,1780763443000,-361.39172463,0.00018842,2]
[424314963,1780763443000,-235.26015701,0.00018842,2]
[424314961,1780763443000,-2658.402379,0.00018838,2]
[424314967,1780763443000,-397.04033054,0.00018842,2]
[424314965,1780763443000,-187.91861217,0.00018842,2]
[424314957,1780763443000,-2658.402379,0.00018838,2]
[424314932,1780763443000,-589.36016596,0.00018548,2]
[424314941,1780763443000,-431.839745,0.00018685,2]
[424314951,1780763443000,-500.0,0.00018838,7]
[424314936,1780763443000,-547.08686954,0.00018548,2]
[424314959,1780763443000,-2658.402379,0.00018838,2]
[424315135,1780763444000,-628.85622838,0.00018883,2]
[424315128,1780763444000,-640.17716329,0.00018883,2]
[424315134,1780763444000,-793.38150982,0.00018883,2]
[424315130,1780763444000,-658.46281319,0.00018883,2]
[424315121,1780763444000,-660.64478073,0.00018883,2]
[424315123,1780763444000,-616.6207372,0.00018883,2]
[424315091,1780763444000,-608.75762401,0.00018883,2]
[424315119,1780763444000,-609.0084661,0.00018883,2]
[424315125,1780763444000,-729.62534106,0.00018883,2]
[424315117,1780763444000,-612.67467778,0.00018883,2]
[424315115,1780763444000,-376.04012336,0.00018883,2]
[424315093,1780763444000,-236.00371422,0.00018883,2]
[424315137,1780763444000,-721.92507028,0.00018883,2]
[424315132,1780763444000,-764.79297685,0.00018883,2]
[424315139,1780763444000,-158.32182995,0.00018883,2]
[424315178,1780763444000,-151.0,0.000192,2]
[424315143,1780763444000,-774.24576445,0.00018883,2]
[424315145,1780763444000,-619.29937869,0.00018883,2]
[424315149,1780763444000,-551.93923214,0.00018883,2]
[424315147,1780763444000,-769.91362833,0.00018883,2]
[424315151,1780763444000,-150.0,0.00018897,4]
[424315159,1780763444000,-151.0,0.0001901,2]
[424315153,1780763444000,-785.81355461,0.00018914,2]
[424315155,1780763444000,-729.44915939,0.00018914,2]
[424315157,1780763444000,-551.75248474,0.00019,2]
[424315161,1780763444000,-386.24062578,0.00019081,2]
[424315163,1780763444000,-444.00124888,0.00019132,2]
[424315165,1780763444000,-300.0,0.00019178,2]
[424315177,1780763444000,-151.0,0.000192,2]
[424315086,1780763444000,-168.85398739,0.00018883,2]
[424315141,1780763444000,-733.23368047,0.00018883,2]
[424315089,1780763444000,-667.22794098,0.00018883,2]
[424315049,1780763444000,-652.27702694,0.00018883,2]
[424315113,1780763444000,-394.82956437,0.00018883,2]
[424315045,1780763444000,-650.25720298,0.00018883,2]
[424315167,1780763444000,-151.0,0.00019178,2]
[424315047,1780763444000,-462.70081759,0.00018883,2]
[424315055,1780763444000,-166.05528821,0.00018883,2]
[424315051,1780763444000,-726.85335169,0.00018883,2]
[424315056,1780763444000,-273.0627032,0.00018883,2]
[424315053,1780763444000,-214.06187175,0.00018883,2]
[424315058,1780763444000,-161.02094661,0.00018883,2]
[424315060,1780763444000,-742.76913016,0.00018883,2]
[424315062,1780763444000,-626.89536242,0.00018883,2]
[424315064,1780763444000,-760.93296391,0.00018883,2]
[424315068,1780763444000,-334.50135585,0.00018883,2]
[424315072,1780763444000,-166.32659347,0.00018883,2]
[424315070,1780763444000,-705.25886112,0.00018883,2]
[424315087,1780763444000,-761.4135928,0.00018883,2]
[424315066,1780763444000,-334.04405936,0.00018883,2]
[424315074,1780763444000,-605.49484293,0.00018883,2]
[424315078,1780763444000,-221.36790646,0.00018883,2]
[424315080,1780763444000,-646.44152015,0.00018883,2]
[424315084,1780763444000,-247.10088606,0.00018883,2]
[424315082,1780763444000,-650.80985853,0.00018883,2]
[424315095,1780763444000,-746.06799081,0.00018883,2]
[424315097,1780763444000,-166.63460654,0.00018883,2]
[424315101,1780763444000,-161.94318942,0.00018883,2]
[424315099,1780763444000,-664.81944096,0.00018883,2]
[424315103,1780763444000,-711.0669851,0.00018883,2]
[424315105,1780763444000,-768.35918707,0.00018883,2]
[424315107,1780763444000,-899.63703706,0.00018883,2]
[424315109,1780763444000,-191.60091107,0.00018883,2]
[424315111,1780763444000,-777.82640897,0.00018883,2]
[424315076,1780763444000,-712.13755945,0.00018883,2]
[424315181,1780763444000,-264.653319,0.00019208,2]
[424315169,1780763444000,-151.0,0.00019178,2]
[424315184,1780763444000,-2658.402379,0.00019248,2]
[424315254,1780763444000,-929.89743711,0.00019796,2]
[424315261,1780763444000,-230.5374646,0.000198,2]
[424315248,1780763444000,-151.0,0.000196,2]
[424315246,1780763444000,-151.0,0.000196,2]
[424315252,1780763444000,-1119.10198622,0.00019796,2]
[424315264,1780763444000,-332.54190596,0.000198,2]
[424315257,1780763444000,-1133.58208802,0.00019796,2]
[424315259,1780763444000,-943.28434256,0.00019796,2]
[424315256,1780763444000,-1349.45555559,0.00019796,2]
[424315266,1780763444000,-276.20140361,0.000198,2]
[424315269,1780763444000,-276.20140361,0.000198,2]
[424315268,1780763444000,-198.82828622,0.000198,2]
[424315271,1780763444000,-1094.17373908,0.00019829,2]
[424315273,1780763444000,-230.5374646,0.000199,2]
[424315250,1780763444000,-1088.86820857,0.00019796,2]
[424315275,1780763444000,-332.54190596,0.000199,2]
[424315280,1780763444000,-150.0,0.00019996,2]
[424315278,1780763444000,-276.20140361,0.000199,2]
[424315282,1780763444000,-150.0,0.00019996,2]
[424315291,1780763444000,-150.0,0.00019998,2]
[424315286,1780763444000,-215.0,0.00019998,2]
[424315287,1780763444000,-150.0,0.00019998,2]
[424315289,1780763444000,-150.0,0.00019998,2]
[424315284,1780763444000,-250.0,0.00019996,2]
[424315295,1780763444000,-150.0,0.00019998,2]
[424315293,1780763444000,-150.0,0.00019998,2]
[424315299,1780763444000,-181.0,0.00019998,2]
[424315303,1780763444000,-2000.0,0.0002,7]
[424315301,1780763444000,-171.0,0.0002,2]
[424315304,1780763444000,-1000.0,0.00020011,2]
[424315276,1780763444000,-276.20140361,0.000199,2]
[424315242,1780763444000,-260523.60864976,0.000196,2]
[424315297,1780763444000,-150.0,0.00019998,2]
[424315228,1780763444000,-911.81144923,0.0001928,2]
[424315173,1780763444000,-270.236276,0.00019178,2]
[424315236,1780763444000,-158.3542577,0.0001951,2]
[424315182,1780763444000,-2658.402379,0.00019248,2]
[424315175,1780763444000,-22987.984559,0.000192,2]
[424315188,1780763444000,-2658.402377,0.00019248,2]
[424315186,1780763444000,-2658.402379,0.00019248,2]
[424315190,1780763444000,-907.39017381,0.00019248,2]
[424315197,1780763444000,-951.766991,0.00019248,2]
[424315199,1780763444000,-932.58498852,0.00019248,2]
[424315205,1780763444000,-1124.54629632,0.00019248,2]
[424315209,1780763444000,-765.84334723,0.00019248,2]
[424315207,1780763444000,-972.28301122,0.00019248,2]
[424315201,1780763444000,-888.83373138,0.00019248,2]
[424315193,1780763444000,-756.86855366,0.00019248,2]
[424315203,1780763444000,-960.44898384,0.00019248,2]
[424315171,1780763444000,-151.0,0.00019178,2]
[424315211,1780763444000,-761.26058263,0.00019248,2]
[424315195,1780763444000,-808.05190019,0.00019248,2]
[424315244,1780763444000,-249.97,0.000196,2]
[424315232,1780763444000,-150.0,0.000194,2]
[424315230,1780763444000,-150.0,0.000194,2]
[424315234,1780763444000,-431.839745,0.0001944,2]
[424315226,1780763444000,-728.08856052,0.00019279,30]
[424315223,1780763444000,-180.72062066,0.00019249,2]
[424315240,1780763444000,-166.66666667,0.00019564,2]
[424315221,1780763444000,-786.07028547,0.00019248,2]
[424315219,1780763444000,-955.99122107,0.00019248,2]
[424315217,1780763444000,-823.07851649,0.00019248,2]
[424315191,1780763444000,-783.07152598,0.00019248,2]
[424315213,1780763444000,-825.80597592,0.00019248,2]
[424315215,1780763444000,-944.65174002,0.00019248,2]
[424315238,1780763444000,-151.0,0.00019558,2]
[424315398,1780763445000,-355.5198537,0.00020728,2]
[424315380,1780763445000,-230.5374646,0.000206,2]
[424315396,1780763445000,-300.0,0.00020671,2]
[424315394,1780763445000,-151.0,0.00020654,2]
[424315377,1780763445000,-166.66666667,0.00020388,14]
[424315382,1780763445000,-332.54190596,0.000206,2]
[424315374,1780763445000,-665.90565573,0.00020379,2]
[424315367,1780763445000,-230.5374646,0.000203,2]
[424315390,1780763445000,-1084.88034329,0.00020619,2]
[424315369,1780763445000,-332.54190596,0.000203,2]
[424315388,1780763445000,-1212.60323227,0.00020619,2]
[424315355,1780763445000,-150.293,0.00020287,2]
[424315403,1780763445000,-299.0,0.00020877,2]
[424315400,1780763445000,-299.0,0.00020877,2]
[424315386,1780763445000,-276.20140361,0.000206,2]
[424315402,1780763445000,-299.0,0.00020877,2]
[424315384,1780763445000,-276.20140361,0.000206,2]
[424315392,1780763445000,-1574.36481485,0.00020619,2]
[424315407,1780763445000,-299.0,0.00020877,2]
[424315405,1780763445000,-299.0,0.00020877,2]
[424315416,1780763445000,-299.0,0.00020877,2]
[424315414,1780763445000,-299.0,0.00020877,2]
[424315409,1780763445000,-299.0,0.00020877,2]
[424315417,1780763445000,-299.0,0.00020877,2]
[424315423,1780763445000,-299.0,0.00020877,2]
[424315361,1780763445000,-249.07,0.00020287,2]
[424315421,1780763445000,-299.0,0.00020877,2]
[424315378,1780763445000,-4525.86741961,0.00020503,2]
[424315365,1780763445000,-284.368,0.00020287,2]
[424315334,1780763445000,-230.5374646,0.000201,2]
[424315359,1780763445000,-247.033,0.00020287,2]
[424315412,1780763445000,-299.0,0.00020877,2]
[424315308,1780763445000,-1000.0,0.00020011,2]
[424315312,1780763445000,-1000.0,0.00020011,2]
[424315313,1780763445000,-1000.0,0.00020011,2]
[424315306,1780763445000,-1000.0,0.00020011,2]
[424315310,1780763445000,-1000.0,0.00020011,2]
[424315321,1780763445000,-844.0,0.00020011,2]
[424315324,1780763445000,-2207.0,0.00020084,2]
[424315323,1780763445000,-3632.0,0.00020084,2]
[424315315,1780763445000,-1000.0,0.00020011,2]
[424315317,1780763445000,-1000.0,0.00020011,2]
[424315319,1780763445000,-1000.0,0.00020011,2]
[424315326,1780763445000,-446.986,0.00020084,2]
[424315358,1780763445000,-150.334,0.00020287,2]
[424315328,1780763445000,-743.0,0.00020084,2]
[424315336,1780763445000,-332.54190596,0.000201,2]
[424315340,1780763445000,-276.20140361,0.000201,2]
[424315345,1780763445000,-179.73198,0.0002011,2]
[424315338,1780763445000,-276.20140361,0.000201,2]
[424315343,1780763445000,-160.0,0.0002011,2]
[424315332,1780763445000,-1415.0,0.00020084,2]
[424315347,1780763445000,-199.46396,0.0002011,2]
[424315341,1780763445000,-151.0,0.00020106,2]
[424315352,1780763445000,-864.0,0.00020254,2]
[424315354,1780763445000,-219.189,0.00020287,2]
[424315363,1780763445000,-150.35,0.00020287,2]
[424315373,1780763445000,-276.20140361,0.000203,2]
[424315371,1780763445000,-276.20140361,0.000203,2]
[424315330,1780763445000,-203.233,0.00020084,2]
[424315419,1780763445000,-299.0,0.00020877,2]
[424315349,1780763445000,-431.839745,0.00020195,2]
[424315426,1780763445000,-299.0,0.00020877,2]
[424315459,1780763445000,-431.839745,0.00021704,2]
[424315460,1780763445000,-151.0,0.0002175,2]
[424315461,1780763445000,-422.450061,0.00021776,2]
[424315462,1780763445000,-160.0,0.00021776,2]
[424315463,1780763445000,-169.124673,0.00021776,2]
[424315469,1780763445000,-155.4,0.00021856,2]
[424315464,1780763445000,-178.249347,0.00021776,2]
[424315467,1780763445000,-1799.27407412,0.00021852,2]
[424315466,1780763445000,-1239.86324947,0.00021852,2]
[424315468,1780763445000,-155.4,0.00021854,2]
[424315473,1780763445000,-254.4829866,0.00021918,2]
[424315472,1780763445000,-166.0,0.00021896,2]
[424315471,1780763445000,-166.0,0.00021865,2]
[424315458,1780763445000,-173.150391,0.00021668,2]
[424315470,1780763445000,-155.39,0.00021858,2]
[424315485,1780763445000,-659.63745086,0.00022206,2]
[424315474,1780763445000,-156.0,0.00021926,2]
[424315482,1780763445000,-846.0,0.00022106,2]
[424315478,1780763445000,-18390.387648,0.00022,2]
[424315477,1780763445000,-171.0,0.00022,2]
[424315476,1780763445000,-1060.0,0.00021954,7]
[424315480,1780763445000,-151.0,0.00022,2]
[424315481,1780763445000,-659.63745086,0.00022043,2]
[424315479,1780763445000,-151.0,0.00022,2]
[424315483,1780763445000,-171.0,0.00022148,30]
[424315484,1780763445000,-1035.119397,0.00022185,14]
[424315486,1780763445000,-615.1697,0.00022209,14]
[424315428,1780763445000,-299.0,0.00020877,2]
[424315475,1780763445000,-1062.97621978,0.00021926,7]
[424315457,1780763445000,-1617.140459,0.0002156,2]
[424315465,1780763445000,-1385.83226545,0.00021852,2]
[424315455,1780763445000,-160.0,0.0002156,2]
[424315425,1780763445000,-299.0,0.00020877,2]
[424315454,1780763445000,-181.36590058,0.000214,2]
[424315427,1780763445000,-299.0,0.00020877,2]
[424315429,1780763445000,-299.0,0.00020877,2]
[424315431,1780763445000,-299.0,0.00020877,2]
[424315432,1780763445000,-433.38,0.000209,14]
[424315434,1780763445000,-1241.234138,0.00021,2]
[424315433,1780763445000,-431.839745,0.00020949,2]
[424315439,1780763445000,-862.599498,0.00021129,2]
[424315435,1780763445000,-171.0,0.00021,2]
[424315437,1780763445000,-215.678376,0.00021115,2]
[424315430,1780763445000,-299.0,0.00020877,2]
[424315438,1780763445000,-160.0,0.00021129,2]
[424315440,1780763445000,-1565.198996,0.00021129,2]
[424315436,1780763445000,-198.162958,0.00021047,2]
[424315443,1780763445000,-865.282834,0.00021152,2]
[424315456,1780763445000,-888.570229,0.0002156,2]
[424315441,1780763445000,-160.0,0.00021152,2]
[424315450,1780763445000,-299.0,0.0002137,2]
[424315445,1780763445000,-299.0,0.0002137,2]
[424315451,1780763445000,-299.0,0.0002137,2]
[424315447,1780763445000,-299.0,0.0002137,2]
[424315446,1780763445000,-299.0,0.0002137,2]
[424315453,1780763445000,-299.0,0.0002137,2]
[424315449,1780763445000,-299.0,0.0002137,2]
[424315444,1780763445000,-151.0,0.00021202,2]
[424315442,1780763445000,-512.641417,0.00021152,2]
[424315452,1780763445000,-299.0,0.0002137,2]
[424315448,1780763445000,-299.0,0.0002137,2]
[424315528,1780763446000,-1901.0,0.00023,2]
[424315532,1780763446000,-156.0,0.0002308,3]
[424315529,1780763446000,-171.0,0.00023,2]
[424315527,1780763446000,-652.523595,0.00022975,14]
[424315525,1780763446000,-160.0,0.00022975,14]
[424315524,1780763446000,-226.567229,0.00022975,14]
[424315537,1780763446000,-2207.0,0.00023084,2]
[424315535,1780763446000,-3632.0,0.00023084,2]
[424315526,1780763446000,-406.261797,0.00022975,14]
[424315516,1780763446000,-205.28425,0.00022975,14]
[424315530,1780763446000,-847.55619678,0.00023056,2]
[424315538,1780763446000,-444.0,0.00023084,2]
[424315531,1780763446000,-166.0,0.0002308,3]
[424315546,1780763446000,-795.0,0.000233,2]
[424315534,1780763446000,-651.0,0.0002308,3]
[424315540,1780763446000,-185.0,0.00023084,2]
[424315551,1780763446000,-406.254501,0.00023541,14]
[424315541,1780763446000,-1415.0,0.00023084,2]
[424315539,1780763446000,-743.0,0.00023084,2]
[424315550,1780763446000,-283.12725,0.00023541,14]
[424315548,1780763446000,-66488.2277,0.00023444,2]
[424315544,1780763446000,-828.0,0.00023283,3]
[424315545,1780763446000,-150.0,0.00023287,2]
[424315543,1780763446000,-384.224236,0.00023205,14]
[424315549,1780763446000,-160.0,0.00023541,14]
[424315547,1780763446000,-151.0,0.00023394,2]
[424315542,1780763446000,-171.0,0.00023148,30]
[424315518,1780763446000,-192.771348,0.00022975,14]
[424315533,1780763446000,-156.0,0.0002308,3]
[424315517,1780763446000,-277.709525,0.00022975,14]
[424315488,1780763446000,-151.0,0.00022298,2]
[424315520,1780763446000,-246.40081,0.00022975,14]
[424315489,1780763446000,-160.0,0.00022442,14]
[424315552,1780763446000,-282.299783,0.00023564,14]
[424315496,1780763446000,-156.12757092,0.00022472,3]
[424315492,1780763446000,-659.63745086,0.00022448,2]
[424315493,1780763446000,-825.0,0.00022462,2]
[424315490,1780763446000,-235.249819,0.00022442,14]
[424315491,1780763446000,-310.499639,0.00022442,14]
[424315487,1780763446000,-1000.0,0.0002228,10]
[424315497,1780763446000,-824.0,0.00022484,2]
[424315494,1780763446000,-306.4367435,0.00022472,3]
[424315495,1780763446000,-166.0,0.00022472,3]
[424315498,1780763446000,-160.0,0.00022516,14]
[424315500,1780763446000,-1536.097879,0.00022516,14]
[424315499,1780763446000,-848.048939,0.00022516,14]
[424315511,1780763446000,-168.980024,0.00022864,14]
[424315502,1780763446000,-303.59054,0.00022623,14]
[424315501,1780763446000,-216.563591,0.00022609,14]
[424315505,1780763446000,-160.0,0.00022722,14]
[424315509,1780763446000,-151.0,0.00022846,2]
[424315506,1780763446000,-208.98157,0.00022722,14]
[424315508,1780763446000,-332.198299,0.00022736,14]
[424315510,1780763446000,-379.8345,0.00022849,14]
[424315507,1780763446000,-257.96314,0.00022722,14]
[424315503,1780763446000,-1066.284275,0.00022638,14]
[424315514,1780763446000,-824.0,0.00022956,3]
[424315513,1780763446000,-4595.596912,0.000229,2]
[424315521,1780763446000,-266.931407,0.00022975,14]
[424315515,1780763446000,-326.3819852,0.00022959,2]
[424315519,1780763446000,-311.046258,0.00022975,14]
[424315522,1780763446000,-212.275146,0.00022975,14]
[424315554,1780763446000,-1017.658727,0.00023641,14]
[424315512,1780763446000,-202.949608,0.00022864,14]
[424315561,1780763446000,-1200.0,0.00023835,5]
[424315587,1780763446000,-375.0,0.00024049,2]
[424315590,1780763446000,-800.0,0.00024085,2]
[424315599,1780763446000,-186.627754,0.00024124,14]
[424315601,1780763446000,-160.158844,0.00024124,14]
[424315603,1780763446000,-731.271235,0.00024124,14]
[424315604,1780763446000,-800.0,0.00024132,2]
[424315605,1780763446000,-800.0,0.00024136,2]
[424315606,1780763446000,-800.0,0.00024143,2]
[424315609,1780763446000,-800.0,0.00024161,2]
[424315607,1780763446000,-772.92189039,0.00024145,2]
[424315612,1780763446000,-800.0,0.00024167,2]
[424315614,1780763446000,-800.0,0.00024174,2]
[424315608,1780763446000,-171.0,0.00024148,30]
[424315613,1780763446000,-800.0,0.00024173,2]
[424315615,1780763446000,-800.0,0.0002418,2]
[424315617,1780763446000,-800.0,0.00024196,2]
[424315627,1780763446000,-151.0,0.00024238,2]
[424315618,1780763446000,-800.0,0.00024198,2]
[424315620,1780763446000,-600.0,0.0002423,2]
[424315628,1780763446000,-151.0,0.00024238,2]
[424315616,1780763446000,-800.0,0.00024186,2]
[424315622,1780763446000,-151.0,0.00024238,2]
[424315619,1780763446000,-305.28,0.00024219,7]
[424315626,1780763446000,-151.0,0.00024238,2]
[424315621,1780763446000,-246.673,0.00024238,2]
[424315623,1780763446000,-151.0,0.00024238,2]
[424315625,1780763446000,-151.0,0.00024238,2]
[424315624,1780763446000,-151.0,0.00024238,2]
[424315564,1780763446000,-376.166826,0.00023858,14]
[424315591,1780763446000,-223.0,0.00024094,120]
[424315588,1780763446000,-800.0,0.00024076,2]
[424315610,1780763446000,-800.0,0.00024165,2]
[424315597,1780763446000,-282.268559,0.00024124,14]
[424315557,1780763446000,-2024.18333338,0.00023702,2]
[424315560,1780763446000,-1200.0,0.00023835,5]
[424315553,1780763446000,-173.701543,0.00023592,14]
[424315558,1780763446000,-4525.86741961,0.00023736,2]
[424315562,1780763446000,-1200.0,0.00023835,5]
[424315589,1780763446000,-800.0,0.00024083,2]
[424315559,1780763446000,-194.907232,0.0002374,14]
[424315563,1780763446000,-924.99851953,0.00023835,5]
[424315556,1780763446000,-1559.06129863,0.00023702,2]
[424315566,1780763446000,-199.318979,0.00023872,14]
[424315576,1780763446000,-350.0,0.00024049,2]
[424315578,1780763446000,-350.0,0.00024049,2]
[424315580,1780763446000,-350.0,0.00024049,2]
[424315565,1780763446000,-880.7822844,0.0002387,2]
[424315567,1780763446000,-197.94206597,0.00023942,2]
[424315555,1780763446000,-160.0,0.00023694,2]
[424315575,1780763446000,-350.0,0.00024049,2]
[424315596,1780763446000,-800.0,0.00024112,2]
[424315579,1780763446000,-350.0,0.00024049,2]
[424315594,1780763446000,-800.0,0.0002411,2]
[424315585,1780763446000,-350.0,0.00024049,2]
[424315592,1780763446000,-207.89,0.000241,2]
[424315583,1780763446000,-350.0,0.00024049,2]
[424315581,1780763446000,-350.0,0.00024049,2]
[424315593,1780763446000,-668.33183929,0.00024103,2]
[424315570,1780763446000,-558.68158411,0.00024,120]
[424315573,1780763446000,-800.0,0.00024048,2]
[424315568,1780763446000,-227.9007,0.00023991,14]
[424315571,1780763446000,-171.0,0.00024,2]
[424315569,1780763446000,-253.0,0.00024,21]
[424315572,1780763446000,-800.0,0.00024044,2]
[424315646,1780763447000,-800.0,0.00024288,2]
[424315636,1780763447000,-800.0,0.00024245,2]
[424315649,1780763447000,-415.79344599,0.00024293,120]
[424315642,1780763447000,-800.0,0.00024263,2]
[424315655,1780763447000,-171.0,0.00024295,120]
[424315654,1780763447000,-9885.58870584,0.00024295,120]
[424315653,1780763447000,-922.69363422,0.00024293,120]
[424315643,1780763447000,-800.0,0.00024264,2]
[424315633,1780763447000,-151.0,0.00024238,2]
[424315640,1780763447000,-562.34846225,0.0002426,2]
[424315637,1780763447000,-152.0,0.0002425,30]
[424315634,1780763447000,-151.0,0.00024238,2]
[424315641,1780763447000,-150.03336244,0.00024262,30]
[424315638,1780763447000,-199.388035,0.0002425,2]
[424315639,1780763447000,-800.0,0.00024259,2]
[424315630,1780763447000,-151.0,0.00024238,2]
[424315632,1780763447000,-151.0,0.00024238,2]
[424315629,1780763447000,-151.0,0.00024238,2]
[424315650,1780763447000,-320.11922034,0.00024293,120]
[424315635,1780763447000,-228.018,0.00024238,2]
[424315648,1780763447000,-203.29116952,0.00024293,120]
[424315631,1780763447000,-151.0,0.00024238,2]
[424315647,1780763447000,-318.55968363,0.00024293,120]
[424315694,1780763447000,-245.57518505,0.00018098,2]
[424315692,1780763447000,-499.99999999,0.00017069,2]
[424315693,1780763447000,-268.45729,0.00017925,2]
[424315685,1780763447000,-166.0,0.00024394,120]
[424315680,1780763447000,-345.801812,0.00024365,14]
[424315678,1780763447000,-151.0,0.00024362,120]
[424315682,1780763447000,-157.0,0.00024394,120]
[424315686,1780763447000,-6239.34167348,0.00024394,7]
[424315676,1780763447000,-150.0,0.00024338,30]
[424315673,1780763447000,-5923.27166452,0.00024321,120]
[424315675,1780763447000,-307.58485,0.00024325,14]
[424315662,1780763447000,-233.1,0.00024321,2]
[424315661,1780763447000,-150.013808,0.000243,2]
[424315657,1780763447000,-732.82123402,0.00024296,120]
[424315660,1780763447000,-800.0,0.000243,2]
[424315658,1780763447000,-2429.78937374,0.00024296,2]
[424315659,1780763447000,-517.559698,0.00024298,14]
[424315656,1780763447000,-170.0,0.00024295,120]
[424315651,1780763447000,-307.06925777,0.00024293,120]
[424315652,1780763447000,-830.54617014,0.00024293,120]
[424315663,1780763447000,-9060.85832264,0.00024321,120]
[424315644,1780763447000,-151.0,0.00024286,6]
[424315697,1780763550000,-500.0,0.00015741,2]
[424315698,1780763567000,-633.38654608,0.00015741,2]
[424315699,1780763672000,150.0,0.00024405,120]
[424315703,1780764326000,-381.7319698,0.00013101,2]
[424315704,1780764341000,-381.7319698,0.00013101,2]
[424315705,1780764355000,-3334.3337959,0.00013101,2]
[424315706,1780764369000,-902.2022645,0.00013101,2]
[424315707,1780764422000,-431.94287793,0.00013233,14]
[424315709,1780764436000,-28.62442924,0.00014129,2]
[424315708,1780764436000,-220.58461065,0.00014129,2]
[424315710,1780764440000,-323.32526943,0.00014129,2]